[Event "Seniors-LEM-65 Sachsen-Anhalt 2024"]
[Site "Magdeburg"]
[Date "2024.07.06"]
[Round "6.13"]
[White "Lorenz, Dietmar"]
[Black "Bregler, Herbert"]
[Result "0-1"]
[ECO "E08"]
[WhiteElo "1981"]
[BlackElo "1952"]
[Annotator "NA RC"]
[PlyCount "90"]
[EventDate "2024.06.25"]
[EventType "swiss"]
[EventCountry "GER"]
[SourceTitle "playchess.com"]
[Source "ChessBase"]
[SourceQuality "1"]
[TimeControl "40/5400+30:1800+30"]

1. Nf3 {[%emt 0:00:03]} d5 {[%emt 0:00:15]} 2. c4 {[%emt 0:00:17]} e6 {[%emt 0:00:20]} 3. d4 {[%emt 0:00:16]} Nf6 {[%emt 0:00:08]} 4. g3 {[%emt 0:00:15]} Be7 {[%emt 0:02:35]} 5. Bg2 {[%emt 0:00:10]} O-O {[%emt 0:00:07]} 6. O-O {[%emt 0:00:03]} Nbd7 {[%emt 0:02:00]} 7. Qc2 {[%emt 0:01:24]} c5 {[%emt 0:02:26]} 8. cxd5 {[%emt 0:01:13]} exd5 {[%emt 0:05:12]} 9. Nc3 {[%emt 0:00:29]} cxd4 {[%emt 0:08:56]} 10. Nxd4 {[%emt 0:00:07]} Nc5 {[%emt 0:03:30]} 11. Rd1 {[%emt 0:08:31]} Ne6 {[%emt 0:14:08]} 12. Nf5 {[%emt 0:03:47]} d4 {[%emt 0:20:37]} 13. e3 {[%emt 0:16:26]} Bc5 {[%emt 0:09:20]} 14. Nxd4 {[%emt 0:04:06]} Qe7 {[%emt 0:11:39]} 15. Nf5 {[%emt 0:11:55]} Qc7 {[%emt 0:02:36]} 16. Na4 {[%emt 0:02:06]} g6 {[%emt 0:00:34]} 17. Nd4 {[%emt 0:01:27]} (17. Nxc5 $142 Qxc5 18. Qxc5 Nxc5 19. Ne7+ Kg7 20. b4) 17... Rd8 {[%emt 0:02:35]} (17... Be7 {is a better defense.} 18. Qxc7 Nxc7) 18. Nxe6 $18 {[%emt 0:02:22]} Rxd1+ {[%emt 0:00:16]} 19. Qxd1 {[%emt 0:00:01]} Bxe6 {[%emt 0:00:12]} 20. Nxc5 {[%emt 0:00:17]} Qxc5 {[%emt 0:00:07]} 21. Bxb7 {[%emt 0:00:58]} Rb8 {[%emt 0:00:04]} 22. Bg2 {[%emt 0:00:33]} Qe5 {[%emt 0:01:45]} 23. Qd4 {[%emt 0:02:01]} Qf5 {[%emt 0:01:32]} 24. b3 {[%emt 0:02:41]} Ng4 {[%emt 0:02:40]} 25. e4 {[%emt 0:02:00]} Qh5 {[%emt 0:02:04]} 26. h3 {[%emt 0:02:47]} Ne5 {[%emt 0:01:19]} 27. Bb2 {[%emt 0:03:39]} f6 {[%emt 0:01:03]} 28. f4 {[%emt 0:02:40]} Nf3+ {[%emt 0:00:57]} 29. Bxf3 {[%emt 0:00:08]} Qxf3 {[%emt 0:00:06]} 30. Qf2 {[%emt 0:02:43]} Qxe4 {[%emt 0:01:23]} 31. Re1 {[%emt 0:01:58]} Qd5 {[%emt 0:00:30]} 32. Qxa7 {[%emt 0:05:53]} Ra8 {[%emt 0:01:10]} 33. Qe3 {[%emt 0:05:49]} Bxh3 {[%emt 0:00:33]} 34. Qe2 {[%emt 0:03:35]} Rxa2 {[%emt 0:00:48]} 35. Qe8+ {[%emt 0:04:31]} Kg7 {[%emt 0:00:15]} 36. Re7+ {[%emt 0:01:19]} Kh6 {[%emt 0:00:28]} 37. Qf8+ {[%emt 0:01:21]} Kh5 {[%emt 0:00:56]} 38. Rxh7+ {[%emt 0:00:15]} Kg4 {[%emt 0:00:23]} 39. Qc8+ {[%emt 0:02:21]} f5 {[%emt 0:01:06]} 40. Rxh3 {[%emt 0:02:07]} Kxh3 {[%emt 0:01:28]} 41. Qh8+ {[%emt 0:35:00]} Kxg3 {[%emt 0:30:41]} 42. Qh2+ {[%emt 0:00:00]} Kg4 {[%emt 0:00:00]} 43. Qc2 {[%emt 0:00:00]} Qe4 {[%emt 0:00:00]} 44. Qd1+ {[%emt 0:00:00]} Qf3 {[%emt 0:00:00]} 45. Qb1 {[%emt 0:00:00]} Qxb3 {[%emt 0:00:00]} 0-1

[Event "Seniors-LEM-65 Sachsen-Anhalt 2024"]
[Site "Magdeburg"]
[Date "2024.07.06"]
[Round "6.14"]
[White "Schmidt, Gerhard"]
[Black "Onasch, Gunnar"]
[Result "1/2-1/2"]
[ECO "D58"]
[WhiteElo "2112"]
[BlackElo "1949"]
[Annotator "RC"]
[PlyCount "32"]
[EventDate "2024.06.25"]
[EventType "swiss"]
[EventCountry "GER"]
[SourceTitle "playchess.com"]
[Source "ChessBase"]
[SourceQuality "1"]
[TimeControl "40/5400+30:1800+30"]

1. d4 {[%emt 0:00:08]} Nf6 {[%emt 0:00:23]} 2. Nf3 {[%emt 0:00:23]} e6 {[%emt 0:00:10]} 3. c4 {[%emt 0:00:16]} d5 {[%emt 0:00:16]} 4. Nc3 {[%emt 0:00:10]} Be7 {[%emt 0:00:43]} 5. Bg5 {[%emt 0:00:17]} O-O {[%emt 0:00:23]} 6. e3 {[%emt 0:00:16]} h6 {[%emt 0:00:09]} 7. Bh4 {[%emt 0:00:40]} b6 {[%emt 0:00:22]} 8. Be2 {[%emt 0:03:04]} dxc4 {[%emt 0:00:40]} 9. Bxc4 {[%emt 0:00:08]} Bb7 {[%emt 0:00:11]} 10. O-O {[%emt 0:00:16]} Nbd7 {[%emt 0:02:53]} 11. Qe2 {[%emt 0:01:30]} Ne4 {[%emt 0:10:39]} 12. Bxe7 {[%emt 0:06:54]} Qxe7 {[%emt 0:00:11]} 13. Rac1 {[%emt 0:02:09]} c5 {[%emt 0:01:28]} 14. Ba6 {[%emt 0:11:42]} Bxa6 {[%emt 0:01:57]} 15. Qxa6 {[%emt 0:00:14]} Ndf6 {[%emt 0:00:48]} 16. Rfd1 {[%emt 0:11:45]} Nxc3 {[%emt 0:14:58]} 1/2-1/2

[Event "Seniors-LEM-65 Sachsen-Anhalt 2024"]
[Site "Magdeburg"]
[Date "2024.07.06"]
[Round "6.15"]
[White "Andersen, Knut"]
[Black "Lehr, Thomas"]
[Result "1/2-1/2"]
[ECO "D02"]
[WhiteElo "2104"]
[BlackElo "1954"]
[Annotator "RC"]
[PlyCount "65"]
[EventDate "2024.06.25"]
[EventType "swiss"]
[EventCountry "GER"]
[SourceTitle "playchess.com"]
[Source "ChessBase"]
[SourceQuality "1"]
[TimeControl "40/5400+30:1800+30"]

1. d4 {[%emt 0:00:02]} e6 {[%emt 0:00:26]} 2. Nf3 {[%emt 0:01:24]} d5 {[%emt 0:00:16]} 3. Bf4 {[%emt 0:01:23]} c6 {[%emt 0:01:56]} 4. Nbd2 {[%emt 0:02:39]} Nf6 {[%emt 0:00:48]} 5. e3 {[%emt 0:00:29]} Bd6 {[%emt 0:06:08]} 6. Ne5 {[%emt 0:02:50]} O-O {[%emt 0:05:11]} 7. Bd3 {[%emt 0:01:01]} Qe7 {[%emt 0:08:06]} 8. Bg3 {[%emt 0:09:57]} c5 {[%emt 0:03:55]} 9. c3 {[%emt 0:01:24]} Nc6 {[%emt 0:03:20]} 10. f4 {[%emt 0:00:59]} Bd7 {[%emt 0:08:54]} 11. Qe2 {[%emt 0:05:39]} Be8 {[%emt 0:24:18]} 12. O-O {[%emt 0:04:02]} Nd7 {[%emt 0:04:26]} 13. Rae1 {[%emt 0:03:07]} f5 {[%emt 0:01:12]} 14. Ndf3 {[%emt 0:03:11]} c4 {[%emt 0:07:10]} 15. Bc2 {[%emt 0:00:41]} Ndxe5 {[%emt 0:01:01]} 16. fxe5 {[%emt 0:00:50]} Bc7 {[%emt 0:00:41]} 17. Bh4 {[%emt 0:01:41]} Qd7 {[%emt 0:01:19]} 18. Kh1 {[%emt 0:08:14]} Bh5 {[%emt 0:02:05]} 19. h3 {[%emt 0:05:26]} Bd8 {[%emt 0:02:25]} 20. Qf2 {[%emt 0:03:21]} h6 {[%emt 0:02:58]} 21. Rg1 {[%emt 0:00:33]} g5 {[%emt 0:00:33]} 22. g4 {[%emt 0:02:23]} fxg4 {[%emt 0:03:19]} 23. hxg4 {[%emt 0:00:12]} Qf7 {[%emt 0:00:09]} 24. Ref1 {[%emt 0:01:53]} Bg6 {[%emt 0:00:27]} 25. Bg3 {[%emt 0:01:22]} Be7 {[%emt 0:01:24]} 26. Kg2 {[%emt 0:02:52]} Qg7 {[%emt 0:00:42]} 27. Qe2 {[%emt 0:01:19]} Qh7 {[%emt 0:00:23]} 28. Bxg6 {[%emt 0:01:42]} Qxg6 {[%emt 0:00:02]} 29. Rh1 {[%emt 0:00:25]} Kg7 {[%emt 0:00:17]} 30. Rh5 {[%emt 0:01:36]} Rh8 {[%emt 0:01:49]} 31. Rfh1 {[%emt 0:01:21]} Qe4 {[%emt 0:00:25]} 32. Kg1 {[%emt 0:02:52]} Raf8 {[%emt 0:03:34]} 33. Ne1 {[%emt 0:00:30]} 1/2-1/2

[Event "Seniors-LEM-65 Sachsen-Anhalt 2024"]
[Site "Magdeburg"]
[Date "2024.07.06"]
[Round "6.16"]
[White "Costello, Colin A"]
[Black "Matthey, Harald"]
[Result "0-1"]
[ECO "A35"]
[WhiteElo "1911"]
[BlackElo "2064"]
[Annotator "NA RC"]
[PlyCount "74"]
[EventDate "2024.06.25"]
[EventType "swiss"]
[EventCountry "GER"]
[SourceTitle "playchess.com"]
[Source "ChessBase"]
[SourceQuality "1"]
[TimeControl "40/5400+30:1800+30"]

1. c4 {[%emt 0:03:13]} g6 {[%emt 0:00:34]} 2. Nc3 {[%emt 0:00:26]} Bg7 {[%emt 0:00:09]} 3. Nf3 {[%emt 0:00:52]} c5 {[%emt 0:02:40]} 4. d4 {[%emt 0:01:20]} cxd4 {[%emt 0:00:31]} 5. Nxd4 {[%emt 0:00:08]} Nc6 {[%emt 0:00:17]} 6. Nxc6 {[%emt 0:02:00]} bxc6 {[%emt 0:02:19]} 7. g3 {[%emt 0:01:09]} h5 {[%emt 0:01:17] A35: Symmetrical English: 2 Nc3 Nc6 3 Nf3.} 8. h4 {[%emt 0:01:28]} Qa5 {[%emt 0:14:00]} 9. Bd2 {[%emt 0:06:18]} Rb8 {[%emt 0:09:38]} 10. Rb1 {[%emt 0:07:10]} Ba6 {[%emt 0:18:08]} 11. e4 {[%emt 0:10:24]} Nf6 {[%emt 0:06:37]} 12. Be2 {[%emt 0:05:12]} O-O {[%emt 0:03:00]} 13. O-O {[%emt 0:02:12]} Qc7 {[%emt 0:01:46]} 14. b3 {[%emt 0:04:15]} d6 {[%emt 0:02:42]} 15. Re1 {[%emt 0:01:53]} Bc8 {[%emt 0:01:12]} 16. Bf3 {[%emt 0:07:34]} Nd7 {[%emt 0:01:07]} 17. Qc2 {[%emt 0:01:11]} Ne5 {[%emt 0:00:30]} 18. Bg2 {[%emt 0:02:31]} f5 {[%emt 0:00:20]} 19. Bf4 {[%emt 0:02:32]} Ng4 {[%emt 0:03:04]} 20. exf5 {[%emt 0:03:14]} Bxf5 {[%emt 0:00:31]} 21. Be4 {[%emt 0:00:09]} Bd4 $17 {[%emt 0:03:30]} 22. Nd1 {[%emt 0:03:29]} e5 {[%emt 0:05:06]} 23. Bxf5 {[%emt 0:02:23]} Rxf5 {[%emt 0:04:43]} 24. Be3 {[%emt 0:00:17]} Qf7 {[%emt 0:05:39]} 25. Bxd4 {[%emt 0:01:56]} exd4 {[%emt 0:00:01]} 26. f4 {[%emt 0:05:41]} Re8 {[%emt 0:03:14]} 27. Nf2 {[%emt 0:02:22]} Ne3 {[%emt 0:00:33]} 28. Qd3 {[%emt 0:01:26]} c5 {[%emt 0:00:24]} 29. b4 {[%emt 0:01:21]} Qb7 {[%emt 0:00:53]} 30. Rxe3 {[%emt 0:02:44]} Rxe3 {[%emt 0:01:01]} 31. bxc5 {[%emt 0:00:42]} Rxd3 {[%emt 0:04:28]} 32. Rxb7 {[%emt 0:00:13]} Rxg3+ {[%emt 0:00:09]} 33. Kh2 {[%emt 0:00:07]} Rf3 {[%emt 0:00:26]} 34. cxd6 {[%emt 0:19:38]} Rxf2+ {[%emt 0:00:37]} 35. Kg3 {[%emt 0:00:00]} R2xf4 {[%emt 0:00:50]} 36. d7 {[%emt 0:00:00]} Rf8 {[%emt 0:00:23]} 37. d8=Q {[%emt 0:00:00]} Rg4+ {[%emt 0:00:08]} 0-1

[Event "Seniors-LEM-65 Sachsen-Anhalt 2024"]
[Site "Magdeburg"]
[Date "2024.07.06"]
[Round "6.17"]
[White "Kopp, Peter"]
[Black "Luebeck, Stephan"]
[Result "1/2-1/2"]
[ECO "A04"]
[WhiteElo "2014"]
[BlackElo "1942"]
[Annotator "NA RC"]
[PlyCount "195"]
[EventDate "2024.06.25"]
[EventType "swiss"]
[EventCountry "GER"]
[SourceTitle "playchess.com"]
[Source "ChessBase"]
[SourceQuality "1"]
[TimeControl "40/5400+30:1800+30"]

1. Nf3 {[%emt 0:00:03]} g6 {[%emt 0:00:05]} 2. g3 {[%emt 0:00:04]} Bg7 {[%emt 0:00:03]} 3. Bg2 {[%emt 0:00:03]} e5 {[%emt 0:00:05]} 4. d3 {[%emt 0:00:10]} Ne7 {[%emt 0:00:25]} 5. e4 {[%emt 0:00:16]} c5 {[%emt 0:00:38]} 6. O-O {[%emt 0:00:36]} Nbc6 {[%emt 0:00:04]} 7. c3 {[%emt 0:00:20]} d6 {[%emt 0:01:12]} 8. a4 {[%emt 0:00:25]} Rb8 {[%emt 0:01:57] A04: Unusual lines after 1 Nf3 and King's Indian Attack.} 9. Nbd2 {[%emt 0:00:47]} a6 {[%emt 0:00:58]} 10. Re1 {[%emt 0:02:39]} b5 {[%emt 0:00:25]} 11. axb5 {[%emt 0:00:22]} axb5 {[%emt 0:00:03]} 12. Nf1 {[%emt 0:01:03]} O-O {[%emt 0:00:33]} 13. Ne3 {[%emt 0:01:41]} Qb6 {[%emt 0:04:52]} 14. h3 {[%emt 0:07:03]} Ba6 {[%emt 0:12:49]} 15. Qb3 {[%emt 0:08:15]} Ra8 {[%emt 0:09:06]} 16. Nd5 {[%emt 0:04:44]} Nxd5 {[%emt 0:01:21]} 17. exd5 {[%emt 0:01:04]} Ne7 {[%emt 0:02:04]} 18. Nd2 {[%emt 0:14:48]} Qc7 {[%emt 0:04:56]} 19. Rb1 {[%emt 0:10:48]} Rfb8 {[%emt 0:08:30]} 20. Qc2 {[%emt 0:01:23]} Bb7 {[%emt 0:10:35]} 21. c4 {[%emt 0:01:25]} bxc4 {[%emt 0:02:13]} 22. dxc4 {[%emt 0:00:11]} Bc8 {[%emt 0:03:10]} 23. g4 {[%emt 0:09:12]} Rb4 {[%emt 0:04:05]} 24. b3 {[%emt 0:03:57]} Rab8 $11 {[%emt 0:00:18]} (24... f5 $15) 25. Bf3 {[%emt 0:06:25]} f5 {[%emt 0:03:16]} 26. Bd1 {[%emt 0:01:34]} Bd7 {[%emt 0:05:43]} 27. Bb2 {[%emt 0:03:49]} Qc8 {[%emt 0:01:13]} 28. Bc3 {[%emt 0:02:56]} R4b7 {[%emt 0:00:17]} 29. f3 {[%emt 0:00:08]} Bh6 {[%emt 0:00:49]} 30. Nf1 {[%emt 0:01:13]} Qf8 {[%emt 0:04:37]} 31. Bd2 {[%emt 0:01:58]} Bxd2 {[%emt 0:03:31]} 32. Qxd2 {[%emt 0:00:59]} Qf6 {[%emt 0:01:08]} 33. g5 {[%emt 0:04:36]} Qg7 {[%emt 0:01:55]} 34. f4 {[%emt 0:00:37]} e4 {[%emt 0:01:28]} 35. Bc2 {[%emt 0:01:28]} h6 {[%emt 0:02:33]} 36. h4 {[%emt 0:00:23]} hxg5 {[%emt 0:00:25]} 37. hxg5 {[%emt 0:00:05]} Qd4+ {[%emt 0:00:19]} 38. Kg2 {[%emt 0:00:18]} Kf7 {[%emt 0:03:50]} 39. Red1 {[%emt 0:00:40]} Qg7 {[%emt 0:01:16]} 40. Ne3 {[%emt 0:01:01]} Rh8 {[%emt 0:02:03]} 41. Rh1 {[%emt 0:31:12]} Rbb8 {[%emt 0:30:48]} 42. Rxh8 {[%emt 0:00:42]} Rxh8 {[%emt 0:00:02]} 43. Rh1 {[%emt 0:00:08]} Ke8 {[%emt 0:00:00]} 44. Rxh8+ {[%emt 0:00:00]} Qxh8 {[%emt 0:00:00]} 45. Qf2 {[%emt 0:00:00]} Nc8 {[%emt 0:00:00]} 46. Qd2 {[%emt 0:00:00]} Nb6 {[%emt 0:00:00]} 47. Qa5 {[%emt 0:00:00]} Qd4 {[%emt 0:00:00]} 48. Kf2 {[%emt 0:00:00]} Ke7 {[%emt 0:00:00]} 49. Bd1 {[%emt 0:00:00]} Nc8 {[%emt 0:00:00]} 50. Be2 {[%emt 0:00:00]} Qh8 {[%emt 0:00:00]} 51. Ng2 {[%emt 0:00:00]} Qb2 {[%emt 0:00:00]} 52. Qe1 {[%emt 0:00:00]} Nb6 {[%emt 0:00:00]} 53. Qd1 {[%emt 0:00:00]} Na8 {[%emt 0:00:00]} 54. Ne3 {[%emt 0:00:00]} Nc7 {[%emt 0:02:30]} 55. Qh1 {[%emt 0:00:00]} Qg7 {[%emt 0:00:43]} 56. Qc1 {[%emt 0:01:13]} Na6 {[%emt 0:00:33]} 57. Nd1 {[%emt 0:02:43]} Nb4 {[%emt 0:01:58]} 58. Qc3 {[%emt 0:01:00]} Qd4+ {[%emt 0:00:20]} 59. Qxd4 {[%emt 0:02:25]} cxd4 {[%emt 0:00:14]} 60. Nb2 {[%emt 0:00:25]} Kd8 {[%emt 0:03:13]} 61. Bd1 {[%emt 0:01:22]} Be8 {[%emt 0:00:47]} 62. Ke1 {[%emt 0:00:47]} Bf7 {[%emt 0:00:43]} 63. Kd2 {[%emt 0:00:37]} Ke7 {[%emt 0:00:21]} 64. Bc2 {[%emt 0:01:35]} Kd7 {[%emt 0:00:19]} 65. Bd1 {[%emt 0:01:07]} Kc7 {[%emt 0:00:18]} 66. Be2 {[%emt 0:00:35]} Kb6 {[%emt 0:00:25]} 67. Na4+ {[%emt 0:00:33]} Ka5 {[%emt 0:00:24]} 68. Nb2 {[%emt 0:00:49]} Na2 {[%emt 0:00:36]} 69. Nd1 {[%emt 0:00:55]} Kb4 {[%emt 0:00:37]} 70. Kc2 {[%emt 0:00:34]} Ka3 {[%emt 0:00:12]} 71. c5 {[%emt 0:00:33]} Nb4+ {[%emt 0:00:09]} 72. Kd2 {[%emt 0:00:15]} dxc5 {[%emt 0:00:13]} 73. d6 {[%emt 0:00:10]} Kxb3 {[%emt 0:00:23]} 74. Bb5 {[%emt 0:00:22]} e3+ {[%emt 0:01:41]} 75. Nxe3 {[%emt 0:02:11]} dxe3+ {[%emt 0:00:09]} 76. Kxe3 {[%emt 0:00:47]} Be6 {[%emt 0:00:14]} 77. d7 {[%emt 0:00:13]} Nd5+ {[%emt 0:00:32]} 78. Kf3 {[%emt 0:01:34]} Bxd7 {[%emt 0:00:10]} 79. Bxd7 {[%emt 0:00:02]} Kc4 {[%emt 0:01:26]} 80. Be8 {[%emt 0:01:31]} Ne7 {[%emt 0:00:27]} 81. Ke3 {[%emt 0:00:23]} Kb3 {[%emt 0:01:38]} 82. Bf7+ {[%emt 0:00:11]} Kc2 {[%emt 0:01:27]} 83. Bc4 {[%emt 0:00:41]} Kd1 {[%emt 0:00:19]} 84. Bf7 {[%emt 0:00:48]} Ke1 {[%emt 0:00:22]} 85. Be6 {[%emt 0:00:29]} Kf1 {[%emt 0:00:11]} 86. Kf3 {[%emt 0:00:07]} Ke1 {[%emt 0:00:44]} 87. Ke3 {[%emt 0:00:06]} Kd1 {[%emt 0:00:04]} 88. Kd3 {[%emt 0:00:11]} Ke1 {[%emt 0:00:43]} 89. Kc4 {[%emt 0:00:31]} Kf2 {[%emt 0:01:17]} 90. Kxc5 {[%emt 0:00:28]} Ke3 {[%emt 0:00:10]} 91. Kd6 {[%emt 0:00:03]} Kxf4 {[%emt 0:00:13]} 92. Kxe7 {[%emt 0:00:41]} Kxg5 {[%emt 0:00:02]} 93. Bc4 {[%emt 0:00:38]} Kf4 {[%emt 0:00:14]} 94. Kf6 {[%emt 0:00:17]} g5 {[%emt 0:00:30]} 95. Bd3 {[%emt 0:00:18]} g4 {[%emt 0:00:14]} 96. Bxf5 {[%emt 0:00:05]} g3 {[%emt 0:00:04]} 97. Bh3 {[%emt 0:00:09]} g2 {[%emt 0:05:31]} 98. Bxg2 1/2-1/2

[Event "Seniors-LEM-65 Sachsen-Anhalt 2024"]
[Site "Magdeburg"]
[Date "2024.07.06"]
[Round "6.18"]
[White "Lapp, Karl"]
[Black "Krien, Hartmut"]
[Result "1-0"]
[ECO "A80"]
[WhiteElo "2001"]
[BlackElo "1928"]
[Annotator "NA RC"]
[PlyCount "101"]
[EventDate "2024.06.25"]
[EventType "swiss"]
[EventCountry "GER"]
[SourceTitle "playchess.com"]
[Source "ChessBase"]
[SourceQuality "1"]
[TimeControl "40/5400+30:1800+30"]

1. d4 {[%emt 0:00:03]} d5 {[%emt 0:00:24]} 2. Nf3 {[%emt 0:00:12]} e6 {[%emt 0:01:08]} 3. Bf4 {[%emt 0:00:25]} c6 {[%emt 0:00:39]} 4. c3 {[%emt 0:01:38]} f5 {[%emt 0:00:59]} 5. e3 {[%emt 0:00:42]} Nf6 {[%emt 0:01:14]} 6. Nbd2 {[%emt 0:00:31]} Bd6 {[%emt 0:11:46] A80: Dutch Defence: Unusual White second moves.} 7. Bd3 {[%emt 0:01:16]} O-O {[%emt 0:03:08]} 8. O-O {[%emt 0:02:03]} Ne4 {[%emt 0:00:53]} 9. Bxd6 {[%emt 0:01:02]} Qxd6 {[%emt 0:00:27]} 10. Ne5 {[%emt 0:00:08]} Nxd2 {[%emt 0:00:45]} 11. Qxd2 {[%emt 0:00:05]} Nd7 {[%emt 0:01:16]} 12. Nxd7 {[%emt 0:00:47]} Bxd7 {[%emt 0:03:51]} 13. Qc2 {[%emt 0:10:11]} e5 {[%emt 0:05:15]} 14. dxe5 {[%emt 0:03:10]} Qxe5 {[%emt 0:02:32]} 15. Rfe1 {[%emt 0:01:19]} Rf6 {[%emt 0:02:59]} 16. Rad1 {[%emt 0:01:50]} Raf8 {[%emt 0:04:17]} 17. a4 {[%emt 0:02:49]} Rh6 {[%emt 0:02:26]} 18. g3 {[%emt 0:00:12]} Qe8 {[%emt 0:08:45]} 19. Be2 {[%emt 0:02:32]} g5 {[%emt 0:03:10]} 20. c4 {[%emt 0:01:16]} Be6 {[%emt 0:03:23]} 21. cxd5 {[%emt 0:02:19]} cxd5 {[%emt 0:02:57]} 22. f4 {[%emt 0:04:03]} g4 {[%emt 0:01:59]} 23. a5 {[%emt 0:01:37]} Bd7 {[%emt 0:04:17]} (23... Qe7 $16 {might work better.}) 24. Rd3 {[%emt 0:05:58]} Bc6 {[%emt 0:01:37]} 25. Rc3 {[%emt 0:00:33]} a6 {[%emt 0:01:53]} 26. Qd2 {[%emt 0:03:58]} Re6 {[%emt 0:02:11]} 27. Bd1 {[%emt 0:01:04]} Qd8 {[%emt 0:03:06]} 28. Rd3 {[%emt 0:02:35]} Rd6 {[%emt 0:08:03] [#]} ({Black should play} 28... Rfe8 $14) 29. Bb3 $14 {[%emt 0:00:46]} (29. e4 $1 $16) 29... Rf7 {[%emt 0:03:45]} 30. e4 {[%emt 0:01:20]} fxe4 {[%emt 0:03:36]} 31. Rxe4 {[%emt 0:00:12]} Kf8 {[%emt 0:03:58]} 32. Re5 {[%emt 0:00:39]} Re7 {[%emt 0:01:57]} 33. Rde3 {[%emt 0:09:58]} Rxe5 {[%emt 0:02:55]} 34. fxe5 {[%emt 0:02:14]} Re6 {[%emt 0:00:42]} 35. Qb4+ {[%emt 0:01:41]} Qe7 {[%emt 0:00:49]} 36. Qd4 {[%emt 0:04:00]} Qg5 {[%emt 0:02:16]} 37. Re1 {[%emt 0:02:54]} Ke8 {[%emt 0:01:19]} 38. Qf4 {[%emt 0:11:49]} Qg7 {[%emt 0:00:58]} 39. Bc2 {[%emt 0:02:28]} h5 {[%emt 0:00:26]} 40. Bf5 {[%emt 0:00:37]} Re7 {[%emt 0:00:24]} 41. e6 {[%emt 0:30:54]} Rc7 {[%emt 0:04:08]} 42. Bg6+ {[%emt 0:00:00]} Qxg6 {[%emt 0:07:36]} 43. Qxc7 {[%emt 0:00:00]} Qf6 {[%emt 0:00:32]} 44. Qf4 {[%emt 0:00:00]} Qxf4 {[%emt 0:05:13]} 45. gxf4 {[%emt 0:00:00]} Ke7 {[%emt 0:00:18]} 46. f5 {[%emt 0:00:00]} h4 {[%emt 0:01:11]} 47. Kf2 {[%emt 0:00:00]} Kf6 {[%emt 0:00:20]} 48. e7 {[%emt 0:00:00]} Be8 {[%emt 0:00:15]} 49. Re6+ {[%emt 0:00:00]} Kxf5 {[%emt 0:01:01]} 50. Rh6 {[%emt 0:00:00]} Bd7 {[%emt 0:03:25]} 51. Rh8 {[%emt 0:00:00]} 1-0

[Event "Seniors-LEM-65 Sachsen-Anhalt 2024"]
[Site "Magdeburg"]
[Date "2024.07.06"]
[Round "6.19"]
[White "Waltenberger, Udo"]
[Black "Krieg, Peter"]
[Result "1/2-1/2"]
[ECO "E17"]
[WhiteElo "1993"]
[BlackElo "1920"]
[Annotator "NA RC"]
[PlyCount "69"]
[EventDate "2024.06.25"]
[EventType "swiss"]
[EventCountry "GER"]
[SourceTitle "playchess.com"]
[Source "ChessBase"]
[SourceQuality "1"]
[TimeControl "40/5400+30:1800+30"]

1. d4 {[%emt 0:00:03]} Nf6 {[%emt 0:00:06]} 2. Nf3 {[%emt 0:00:05]} e6 {[%emt 0:00:09]} 3. g3 {[%emt 0:00:05]} d5 {[%emt 0:00:10]} 4. Bg2 {[%emt 0:00:02]} Be7 {[%emt 0:01:50]} 5. c4 {[%emt 0:00:19]} O-O {[%emt 0:00:43]} 6. cxd5 {[%emt 0:00:04]} exd5 {[%emt 0:00:12]} 7. O-O {[%emt 0:00:23]} b6 {[%emt 0:02:33]} 8. b3 {[%emt 0:01:29]} Bb7 {[%emt 0:05:23]} 9. Bb2 {[%emt 0:00:04]} Nbd7 {[%emt 0:01:00]} 10. Nc3 {[%emt 0:04:07]} Ne4 {[%emt 0:05:54]} 11. Nxe4 {[%emt 0:00:26] E17: Queen's Indian: 4 g3 Bb7 5 Bg2 Be7.} dxe4 {[%emt 0:00:08]} 12. Nd2 {[%emt 0:00:16]} f5 {[%emt 0:02:54]} 13. Rc1 {[%emt 0:02:33]} Nf6 {[%emt 0:07:34]} 14. e3 {[%emt 0:08:10]} Rc8 {[%emt 0:09:51]} 15. Nc4 {[%emt 0:06:42]} Ba6 {[%emt 0:04:45]} 16. Re1 {[%emt 0:01:26]} Bb4 {[%emt 0:01:56]} 17. Re2 {[%emt 0:02:57]} Qe7 {[%emt 0:01:48]} 18. Rec2 {[%emt 0:02:35]} Rfd8 {[%emt 0:02:30]} 19. Ne5 {[%emt 0:09:56]} Bb7 {[%emt 0:08:03]} 20. a3 {[%emt 0:16:27]} Bd6 {[%emt 0:02:02]} 21. Nc4 {[%emt 0:00:20]} Qe6 {[%emt 0:08:54]} 22. Nxd6 {[%emt 0:06:50]} cxd6 {[%emt 0:02:29]} 23. Rxc8 {[%emt 0:00:02]} Rxc8 {[%emt 0:00:14]} 24. Bf1 $11 {[%emt 0:01:52]} Rxc1 {[%emt 0:04:48]} 25. Qxc1 {[%emt 0:00:02]} Qc8 {[%emt 0:00:19]} 26. Qxc8+ {[%emt 0:00:19]} Bxc8 {[%emt 0:00:10]} 27. Bc4+ {[%emt 0:00:55]} d5 {[%emt 0:02:48]} 28. Bb5 {[%emt 0:00:51]} a6 {[%emt 0:02:25]} 29. Bc6 {[%emt 0:01:20]} Kf7 {[%emt 0:02:47]} 30. Bc3 {[%emt 0:00:46]} Ke6 {[%emt 0:01:08]} 31. Bb4 {[%emt 0:01:07]} Nd7 {[%emt 0:05:06]} 32. a4 {[%emt 0:00:47]} Nb8 {[%emt 0:03:30]} 33. Ba8 {[%emt 0:02:22]} Bd7 {[%emt 0:00:43]} 34. Bb7 {[%emt 0:00:40]} Bc6 {[%emt 0:01:19]} 35. Bc8+ {[%emt 0:02:56]} 1/2-1/2